bitfinex/quotes_BTCUSD_20241111
["timestamp","ask_amount","ask_price","bid_price","bid_amount"]
[1731335906160,0.121313,82431.0,82407.0,0.242695]
[1731335906382,0.12594221,82431.0,82415.0,0.121336]
[1731335906623,0.24725521,82431.0,82404.0,0.242706]
[1731335906831,0.21087242,82431.0,82408.0,0.18210969]
[1731335907067,0.121336,82416.0,82408.0,0.0002]
[1731335907273,0.12594221,82415.0,82408.0,0.0002]
[1731335907490,0.121345,82409.0,82408.0,0.0002]
[1731335907695,0.12594221,82409.0,82408.0,0.0002]
[1731335907919,0.24728721,82409.0,82408.0,0.0002]
[1731335908124,0.24728721,82409.0,82363.0,0.242824]
[1731335908125,0.242698,82407.0,82392.0,0.00600658]
[1731335908372,0.121364,82397.0,82383.0,0.18190969]
[1731335908573,0.20717242,82406.0,82383.0,0.18190969]
[1731335908574,0.20474221,82406.0,82384.0,0.242765]
[1731335908822,0.18190969,82394.0,82373.0,0.0002]
[1731335909031,0.30326469,82403.0,82374.0,0.122242]
[1731335909032,0.17737242,82393.0,82374.0,0.122242]
[1731335909251,0.049,82393.0,82375.0,0.00242754]
[1731335909457,0.18190969,82391.0,82380.0,0.121388]
[1731335909669,0.18190969,82391.0,82374.0,0.000845]
[1731335909670,0.12837242,82390.0,82374.0,0.000845]
[1731335910107,0.005,82388.0,82374.0,0.000845]
[1731335910327,0.12837242,82387.0,82376.0,0.00419841]
[1731335910536,0.12837242,82387.0,82362.0,0.242829]
[1731335910537,0.005,82384.0,82362.0,0.242828]
[1731335910736,0.20604221,82383.0,82363.0,0.18190969]
[1731335910953,0.20604221,82383.0,82366.0,0.242818]
[1731335910954,0.0801,82383.0,82366.0,0.242818]
[1731335911156,0.0801,82383.0,82376.0,0.121393]
[1731335911157,0.18190969,82382.0,82376.0,0.121393]
[1731335911374,0.18190969,82382.0,82362.0,0.242828]
[1731335911375,0.00243021,82381.0,82362.0,0.242828]
[1731335911582,0.3078519,82382.0,82367.0,0.242815]
[1731335911790,0.3078519,82382.0,82365.0,0.009372]
[1731335911999,0.3078519,82382.0,82366.0,0.121407]
[1731335912219,0.12837242,82381.0,82365.0,0.001372]
[1731335912653,0.121389,82380.0,82365.0,0.001372]
[1731335912852,0.12837242,82379.0,82365.0,0.001372]
[1731335913071,0.121394,82377.0,82365.0,0.001372]
[1731335913282,0.085,82365.0,82346.0,0.242877]
[1731335913517,0.12837242,82364.0,82348.0,0.121435]
[1731335913717,0.12837242,82364.0,82346.0,0.242877]
[1731335914048,0.08,82365.0,82348.0,0.00242837]
[1731335914249,0.18190969,82364.0,82348.0,0.00242837]
[1731335914422,0.18190969,82364.0,82348.0,0.24529937]
[1731335914628,0.18190969,82364.0,82359.0,0.121419]
[1731335914781,0.18190969,82364.0,82358.0,0.12142]
[1731335914985,0.18190969,82364.0,82360.0,0.121417]
[1731335915196,0.18190969,82364.0,82354.0,0.242852]
[1731335915197,0.18190969,82364.0,82357.0,0.242842]
[1731335915394,0.08,82365.0,82355.0,0.00242825]
[1731335915594,0.08,82365.0,82364.0,0.121412]
[1731335916024,0.08,82365.0,82347.0,0.009372]
[1731335916201,0.08,82365.0,82359.0,0.121418]
[1731335916470,0.18190969,82364.0,82350.0,0.00242825]
[1731335916637,0.18190969,82364.0,82353.0,0.242856]
[1731335916865,0.0483,82372.0,82347.0,0.009372]
[1731335916866,0.0483,82372.0,82355.0,0.1]
[1731335917040,0.18190969,82371.0,82370.0,0.221403]
[1731335917600,0.07772225,82381.0,82370.0,0.1]
[1731335917923,0.07772225,82381.0,82370.0,0.342805]
[1731335918146,0.07772225,82381.0,82370.0,0.008]
[1731335918343,0.12837242,82380.0,82370.0,0.008]
[1731335918555,0.121392,82378.0,82359.0,0.121419]
[1731335918754,0.07772225,82381.0,82352.0,0.1]
[1731335918755,0.12837242,82377.0,82370.0,0.008]
[1731335919159,0.12837242,82377.0,82359.0,0.242838]
[1731335919434,0.12837242,82377.0,82362.0,0.121414]
[1731335919637,0.18190969,82373.0,82352.0,0.1]
[1731335919856,0.3078519,82373.0,82357.0,0.242843]
[1731335920186,0.3078519,82373.0,82362.0,0.121414]
[1731335920381,0.3078519,82373.0,82370.0,0.007]
[1731335920382,0.12837242,82372.0,82370.0,0.007]
[1731335920499,0.0484,82371.0,82370.0,0.007]
[1731335920705,0.17434221,82371.0,82370.0,0.007]
[1731335920911,0.17434221,82371.0,82350.0,0.00327334]
[1731335921131,0.005,82368.0,82350.0,0.000845]
[1731335921545,0.0003,82365.0,82357.0,0.007]
[1731335921717,0.12624221,82365.0,82358.0,0.12142]
[1731335921918,0.0003,82365.0,82364.0,0.121412]
[1731335922462,0.0003,82365.0,82345.0,0.002]
[1731335922463,0.0003,82365.0,82345.0,0.1]
[1731335922730,0.0003,82365.0,82337.0,0.242901]
[1731335922731,0.0003,82365.0,82351.0,0.00242824]
[1731335922988,0.0003,82365.0,82364.0,0.121412]
[1731335924471,0.0003,82365.0,82364.0,0.129412]
[1731335924969,0.0003,82365.0,82364.0,0.137412]
[1731335925178,0.0003,82365.0,82364.0,0.121412]
[1731335925554,0.0003,82365.0,82362.0,0.121414]
[1731335925761,0.0003,82365.0,82364.0,0.121412]
[1731335925965,0.0003,82365.0,82359.0,0.121418]
[1731335926178,0.0003,82365.0,82361.0,0.121416]
[1731335926390,0.0003,82365.0,82359.0,0.121418]
[1731335926600,0.0003,82365.0,82364.0,0.008]
[1731335926792,0.0003,82365.0,82358.0,0.1]
[1731335927028,0.0003,82365.0,82364.0,0.121412]
[1731335927199,0.0003,82365.0,82359.0,0.008]
[1731335927402,0.0003,82365.0,82362.0,0.121414]
[1731335927821,0.0003,82365.0,82364.0,0.008]
[1731335928233,0.0003,82365.0,82336.0,0.242904]
[1731335928234,0.12624221,82365.0,82359.0,0.008]
[1731335928447,0.242827,82363.0,82350.0,0.000845]
[1731335928672,0.12438407,82362.0,82350.0,0.000845]
[1731335929057,0.18190969,82361.0,82351.0,0.12143]
[1731335929250,0.12594221,82360.0,82350.0,0.000845]
[1731335929449,0.00243021,82359.0,82350.0,0.000845]
[1731335929681,0.12594221,82358.0,82350.0,0.000845]
[1731335929886,0.00243021,82357.0,82350.0,0.000845]
[1731335930143,0.12594221,82356.0,82346.0,0.121438]
[1731335930344,0.12594221,82356.0,82339.0,0.0002]
[1731335930345,0.12594221,82356.0,82341.0,0.0024286]
[1731335930618,0.12594221,82356.0,82342.0,0.0024286]
[1731335930836,0.18190969,82352.0,82342.0,0.0024286]
[1731335930963,0.18190969,82352.0,82339.0,0.0002]
[1731335930964,0.18190969,82352.0,82350.0,0.008]
[1731335931177,0.18190969,82352.0,82339.0,0.243095]
[1731335931388,0.12594221,82356.0,82345.0,0.121439]
[1731335931631,0.18190969,82352.0,82341.0,0.008]
[1731335931830,0.12837242,82351.0,82341.0,0.008]
[1731335932144,0.242866,82350.0,82341.0,0.008]
[1731335932370,0.18190969,82352.0,82341.0,0.008]
[1731335932371,0.17547242,82349.0,82341.0,0.008]
[1731335932767,0.0471,82349.0,82340.0,0.242895]
[1731335932970,0.0471,82349.0,82346.0,0.121437]
[1731335933147,0.0471,82349.0,82339.0,0.0002]
[1731335933744,0.18190969,82348.0,82342.0,0.121443]
[1731335933947,0.18190969,82348.0,82345.0,0.121439]
[1731335934226,0.18190969,82347.0,82343.0,0.121442]
[1731335934454,0.0481,82349.0,82343.0,0.121442]
[1731335934645,0.0471,82349.0,82339.0,0.0002]
[1731335934768,0.31028211,82348.0,82339.0,0.0002]
[1731335934973,0.12594221,82348.0,82339.0,0.0002]
[1731335935173,0.18190969,82347.0,82340.0,0.121446]
[1731335935458,0.3078519,82347.0,82339.0,0.0002]
[1731335935804,0.3078519,82347.0,82339.0,0.127648]
[1731335936021,0.3078519,82347.0,82319.0,0.00603532]
[1731335936022,0.01,82344.0,82303.0,0.002]
[1731335936300,0.01,82344.0,82322.0,0.121472]
[1731335936301,0.12145,82338.0,82322.0,0.121472]
[1731335936507,0.18190969,82335.0,82318.0,0.00242927]
[1731335936734,0.18190969,82335.0,82310.0,0.242983]
[1731335936735,0.12594221,82334.0,82311.0,0.00242927]
[1731335936946,0.18790969,82347.0,82312.0,0.12794221]
[1731335937144,0.18290969,82347.0,82346.0,0.121438]
[1731335937587,0.001,82347.0,82346.0,0.221438]
[1731335938201,0.0768,82364.0,82346.0,0.221438]
[1731335938202,0.0768,82364.0,82349.0,0.242867]
[1731335938404,0.18190969,82351.0,82350.0,0.121432]
[1731335938618,0.0768,82364.0,82347.0,0.1]
[1731335938788,0.0768,82364.0,82325.0,0.002]
[1731335938789,0.18190969,82351.0,82344.0,0.12144]
[1731335939014,0.12594221,82357.0,82330.0,0.1]
[1731335939262,0.18190969,82352.0,82334.0,0.242912]
[1731335939467,0.18190969,82352.0,82330.0,0.1]
[1731335939468,0.001,82334.0,82330.0,0.1]
[1731335939652,0.001,82334.0,82333.0,0.121457]
[1731335939868,0.12837242,82351.0,82337.0,0.121451]
[1731335939988,0.12837242,82351.0,82330.0,0.1]
[1731335939989,0.18190969,82341.0,82331.0,0.242921]
[1731335940194,0.00243021,82349.0,82330.0,0.1]
[1731335940402,0.18190969,82343.0,82331.0,0.242921]
[1731335940604,0.18190969,82343.0,82330.0,0.005]
[1731335940605,0.001,82334.0,82330.0,0.005]
[1731335940810,0.12594221,82333.0,82330.0,0.005]
[1731335941078,0.12594221,82333.0,82303.0,0.002]
[1731335941079,0.18190969,82338.0,82332.0,0.002]
[1731335941274,0.001,82349.0,82332.0,0.123458]
[1731335941448,0.001,82349.0,82332.0,0.123459]
[1731335941449,0.18190969,82343.0,82332.0,0.123459]
[1731335941686,0.18190969,82343.0,82332.0,0.002]
[1731335941687,0.12514392,82342.0,82332.0,0.002]
[1731335941869,0.001,82349.0,82341.0,0.002]
[1731335942081,0.18190969,82344.0,82341.0,0.002]
[1731335942300,0.001,82349.0,82333.0,0.121457]
[1731335942301,0.001,82349.0,82348.0,0.002]
[1731335942525,0.12508933,82349.0,82348.0,0.002]
[1731335942637,0.18190969,82365.0,82348.0,0.002]
[1731335942877,0.18190969,82365.0,82335.0,0.005]
[1731335942878,0.18190969,82354.0,82353.0,0.002]
[1731335943082,0.14773072,82364.0,82363.0,0.002]
[1731335943083,0.12506565,82364.0,82363.0,0.002]
[1731335943282,0.14773237,82364.0,82363.0,0.002]
[1731335943535,0.02266672,82364.0,82363.0,0.002]
[1731335943736,0.02266672,82364.0,82349.0,0.002]
[1731335943906,0.02266672,82363.0,82349.0,0.002]
[1731335944103,0.02266672,82362.0,82349.0,0.002]
[1731335944390,0.02266672,82362.0,82345.0,0.000845]
[1731335944391,0.18190969,82350.0,82345.0,0.000845]
[1731335944788,0.18190969,82350.0,82325.0,0.005]
[1731335944789,0.02266672,82349.0,82346.0,0.18190969]
[1731335944999,0.07849,82365.0,82346.0,0.18190969]
[1731335945000,0.00169,82365.0,82364.0,0.121412]
[1731335945205,0.02435318,82365.0,82364.0,0.121412]
[1731335945423,0.00169,82365.0,82364.0,0.121412]
[1731335945844,0.00169,82365.0,82364.0,0.60747]
[1731335946494,0.00269,82365.0,82364.0,0.61347]
[1731335946984,0.00169,82365.0,82364.0,0.60747]
[1731335947195,0.00269,82365.0,82364.0,0.63647]
[1731335947408,0.18190969,82387.0,82386.0,0.131379]
[1731335947615,0.18190969,82387.0,82386.0,0.126379]
[1731335947818,0.5495,82402.0,82396.0,0.121363]
[1731335948048,0.5495,82402.0,82384.0,0.242765]
[1731335948049,0.02263988,82401.0,82388.0,0.005]
[1731335948253,0.02263988,82400.0,82393.0,0.121369]
[1731335948461,0.02263988,82400.0,82389.0,0.24275]
[1731335948669,0.02263988,82399.0,82393.0,0.121368]
[1731335948888,0.02263988,82399.0,82385.0,0.1]
[1731335948889,0.18190969,82409.0,82394.0,0.005]
[1731335949089,0.18190969,82409.0,82395.0,0.121366]
[1731335949203,0.02262218,82408.0,82397.0,0.242727]
[1731335949404,0.18190969,82409.0,82400.0,0.121358]
[1731335949630,0.46654135,82410.0,82403.0,0.121353]
[1731335950035,0.46654135,82410.0,82394.0,0.005]
[1731335950036,0.16354135,82410.0,82397.0,0.242727]
[1731335950245,0.0766,82411.0,82406.0,0.12135]
[1731335950418,0.0489,82412.0,82400.0,0.25011579]
[1731335950625,0.18190969,82419.0,82418.0,0.121332]
[1731335951021,0.0762,82425.0,82411.0,0.005]
[1731335951327,0.0762,82425.0,82422.0,0.121325]
[1731335951727,0.0762,82425.0,82416.0,0.242668]
[1731335951932,0.0455,82431.0,82418.0,0.005]
[1731335952135,0.25913094,82440.0,82419.0,0.00742633]
[1731335952136,0.18190969,82430.0,82419.0,0.00742633]
[1731335952351,0.25913094,82440.0,82420.0,0.242657]
[1731335952580,0.18190969,82431.0,82419.0,0.03642733]
[1731335952799,0.12594221,82439.0,82422.0,0.005]
[1731335953004,0.12594221,82439.0,82419.0,0.03642733]
[1731335953005,0.18190969,82430.0,82419.0,0.03642733]
[1731335953253,0.12594221,82429.0,82404.0,0.18190969]
[1731335953457,0.12594221,82427.0,82404.0,0.18190969]
[1731335953608,0.12594221,82418.0,82402.0,0.18190969]
[1731335953809,1.52250728,82417.0,82393.0,0.06730226]
[1731335954006,0.14844949,82416.0,82393.0,0.06730226]
[1731335954355,0.18190969,82412.0,82382.0,0.121385]
[1731335954539,0.12594221,82409.0,82386.0,0.18190969]
[1731335954691,0.02250728,82408.0,82386.0,0.18190969]
[1731335954894,0.049,82411.0,82386.0,0.18190969]
[1731335954895,0.14844949,82407.0,82386.0,0.18190969]
[1731335955106,0.14844949,82407.0,82379.0,0.121389]
[1731335955107,0.18190969,82403.0,82379.0,0.121389]
[1731335955473,0.14844949,82402.0,82387.0,0.18190969]
[1731335955686,0.18190969,82399.0,82386.0,0.242757]
[1731335955894,0.3078519,82399.0,82381.0,0.606935]
[1731335956130,0.3078519,82399.0,82380.0,0.49789279]
[1731335956131,0.12594221,82399.0,82390.0,0.121373]
[1731335956354,0.18190969,82398.0,82386.0,0.121378]
[1731335956591,0.12594221,82399.0,82381.0,0.005]
[1731335956793,0.23090969,82411.0,82396.0,0.005]
[1731335957003,0.18190969,82402.0,82401.0,0.121357]
[1731335957190,0.18190969,82402.0,82386.0,0.004]
[1731335957334,0.12594221,82401.0,82386.0,0.004]
[1731335957722,0.23090969,82411.0,82389.0,0.18190969]
[1731335957723,0.049,82411.0,82389.0,0.18190969]
[1731335958035,0.18190969,82409.0,82394.0,0.242734]
[1731335958184,0.18190969,82409.0,82394.0,0.005]
[1731335958388,0.18190969,82409.0,82392.0,0.00742713]
[1731335958561,0.18190969,82409.0,82394.0,0.005]
[1731335958773,0.049,82411.0,82395.0,0.00242713]
[1731335958961,0.00169,82420.0,82403.0,0.005]
[1731335959164,0.18190969,82412.0,82411.0,0.121343]
[1731335959387,0.00169,82420.0,82410.0,0.485376]
[1731335959602,0.00169,82420.0,82408.0,0.005]
[1731335959800,0.00169,82420.0,82410.0,0.121343]
[1731335960005,0.00169,82420.0,82408.0,0.005]
[1731335960207,0.00169,82420.0,82419.0,0.121331]
[1731335960412,0.00169,82420.0,82417.0,0.005]
[1731335960649,0.00169,82420.0,82419.0,0.50444679]
[1731335960824,0.00169,82420.0,82419.0,0.630389]
[1731335961042,0.00169,82420.0,82419.0,0.66220607]
[1731335961435,0.00169,82420.0,82419.0,0.63920607]
[1731335961639,0.00169,82420.0,82419.0,0.35727321]
[1731335961794,0.00169,82420.0,82419.0,0.66220607]
[1731335961994,0.00169,82420.0,82419.0,0.66420607]
[1731335962214,0.00169,82420.0,82419.0,0.66220607]
[1731335963224,0.00169,82420.0,82419.0,0.66720607]
[1731335963426,0.00169,82420.0,82419.0,0.67220607]
[1731335963608,0.00169,82420.0,82419.0,0.66920607]
[1731335963806,0.00169,82420.0,82419.0,0.67420607]
[1731335964011,0.00169,82420.0,82419.0,0.66920607]
[1731335965009,0.00169,82420.0,82419.0,0.67420607]
[1731335965222,1e-06,82420.0,82419.0,0.67620607]
[1731335965440,0.00182125,82440.0,82439.0,0.231301]
[1731335965644,0.00182125,82440.0,82439.0,0.26511807]
[1731335966369,0.00182125,82440.0,82439.0,0.39106028]
[1731335966567,0.00182125,82440.0,82439.0,0.39606028]
[1731335967060,0.00182125,82440.0,82439.0,0.39106028]
[1731335967891,0.00351125,82440.0,82439.0,0.39106028]
[1731335968369,0.18190969,82497.0,82447.0,0.015]
[1731335968579,0.18190969,82475.0,82474.0,0.15425]
[1731335968802,0.18190969,82487.0,82478.0,0.259244]
[1731335969020,0.18190969,82496.0,82478.0,0.27001772]
[1731335969228,1e-06,82479.0,82478.0,0.31376722]
[1731335969474,1e-06,82479.0,82478.0,0.35983487]
[1731335969673,0.20617844,82514.0,82513.0,0.131193]
[1731335969674,0.18190969,82514.0,82513.0,0.131193]
[1731335969895,0.18190969,82514.0,82513.0,0.50430879]
[1731335970121,0.18190969,82523.0,82515.0,0.126189]
[1731335970341,0.18190969,82523.0,82513.0,0.00324738]
[1731335970542,0.18190969,82534.0,82514.0,0.18190969]
[1731335970779,0.12594221,82533.0,82515.0,0.18190969]
[1731335971001,0.18190969,82543.0,82517.0,0.005]
[1731335971208,0.18190969,82543.0,82523.0,0.005]
[1731335971418,0.18190969,82543.0,82524.0,0.242353]
[1731335971629,0.12594221,82539.0,82524.0,0.00321899]
[1731335971827,0.12594221,82539.0,82525.0,0.18190969]
[1731335972048,0.12594221,82539.0,82527.0,0.121171]
[1731335972249,0.12594221,82539.0,82527.0,0.121172]
[1731335972387,0.12594221,82539.0,82525.0,0.18190969]
[1731335972590,0.12594221,82539.0,82523.0,0.004]
[1731335972591,0.02373053,82528.0,82523.0,0.004]
[1731335972796,0.14967274,82528.0,82526.0,0.18190969]
[1731335973011,0.02373053,82528.0,82527.0,0.121172]
[1731335973408,0.02373053,82528.0,82520.0,0.005]
[1731335973819,0.02373053,82528.0,82521.0,0.242362]
[1731335974034,0.017631,82540.0,82520.0,0.242365]
[1731335974236,0.12594221,82539.0,82521.0,0.12118]
[1731335974369,1.5,82527.0,82512.0,0.121193]
[1731335974744,1.5,82527.0,82504.0,0.005]
[1731335974745,0.12594221,82526.0,82517.0,0.18190969]
[1731335975056,0.12594221,82526.0,82523.0,0.004]
[1731335975228,0.0476,82524.0,82496.0,0.005]
[1731335975435,0.0476,82524.0,82493.0,0.242444]
[1731335975436,0.25011579,82521.0,82517.0,0.18190969]
[1731335975634,0.12594221,82520.0,82508.0,0.18190969]
[1731335975839,0.0476,82524.0,82517.0,0.18190969]
[1731335976043,0.0476,82524.0,82517.0,0.004]
[1731335976440,0.0476,82524.0,82516.0,0.121188]
[1731335976582,0.0476,82524.0,82517.0,0.004]
[1731335977891,0.0476,82524.0,82513.0,0.121191]
[1731335978101,0.12594221,82523.0,82517.0,0.004]
[1731335978309,0.12594221,82523.0,82514.0,0.00396454]
[1731335978534,0.12594221,82523.0,82510.0,0.18190969]
[1731335978759,0.12594221,82523.0,82476.0,0.005]
[1731335978760,0.25011579,82521.0,82517.0,0.004]
[1731335978961,0.25011579,82521.0,82474.0,0.005]
[1731335978962,0.12594221,82520.0,82486.0,0.005]
[1731335979163,0.25011579,82512.0,82508.0,0.18190969]
[1731335979374,1.5,82509.0,82508.0,0.18190969]
[1731335979821,0.0476,82524.0,82504.0,0.005]
[1731335980017,0.0476,82524.0,82490.0,0.43202548]
[1731335980018,0.0476,82524.0,82523.0,0.121178]
[1731335980220,0.025,82529.0,82525.0,0.121174]
[1731335980456,0.001688,82524.0,82517.0,0.005]
[1731335980659,0.001688,82524.0,82523.0,0.121178]
[1731335980831,0.001688,82524.0,82519.0,0.242368]
[1731335981035,0.001688,82524.0,82517.0,0.005]
[1731335981036,0.001688,82524.0,82523.0,0.121178]
[1731335981299,0.001688,82524.0,82517.0,0.247374]
[1731335981300,0.001688,82524.0,82518.0,0.18190969]
[1731335981515,0.001688,82524.0,82517.0,0.247374]
[1731335981516,0.001688,82524.0,82521.0,0.12118]
[1731335981723,0.001688,82524.0,82517.0,0.247374]
[1731335981724,0.001688,82524.0,82517.0,0.005]
[1731335981925,0.001688,82524.0,82508.0,0.42930969]
[1731335982146,0.001688,82524.0,82523.0,0.004]
[1731335982343,0.001688,82524.0,82523.0,0.125178]
[1731335982560,0.001688,82524.0,82523.0,0.121178]
[1731335982858,0.001688,82524.0,82518.0,0.003]
[1731335983061,0.001688,82524.0,82521.0,0.12118]
[1731335983249,0.001688,82524.0,82518.0,0.003]
[1731335983596,0.12594221,82523.0,82518.0,0.003]
[1731335983793,1.5,82522.0,82518.0,0.003]
[1731335984014,0.12594221,82523.0,82511.0,0.18190969]
[1731335984574,0.12594221,82523.0,82486.0,0.005]
[1731335984575,0.18190969,82521.0,82500.0,0.105]
[1731335984777,0.12594221,82521.0,82508.0,0.18190969]
[1731335984985,0.12594221,82521.0,82518.0,0.004]
[1731335985367,0.12594221,82521.0,82508.0,0.18690969]
[1731335985567,0.12594221,82521.0,82511.0,0.004]
[1731335986020,0.12594221,82521.0,82510.0,0.242394]
[1731335986226,0.12594221,82521.0,82512.0,0.00341375]
[1731335986659,0.001688,82524.0,82512.0,0.00341375]
[1731335986660,0.3078519,82520.0,82512.0,0.00341375]
[1731335986878,0.3078519,82520.0,82486.0,0.242463]
[1731335986879,0.0483,82519.0,82500.0,0.18190969]
[1731335987073,0.0483,82519.0,82490.0,0.18190969]
[1731335987074,0.005,82509.0,82490.0,0.18190969]
[1731335987281,0.005,82502.0,82501.0,0.00343218]
[1731335987485,0.005,82500.0,82490.0,0.18190969]
[1731335987661,0.005,82500.0,82477.0,0.18190969]
[1731335987662,0.075,82496.0,82492.0,0.18190969]
[1731335987917,0.075,82496.0,82478.0,0.05]
[1731335988125,0.02240501,82495.0,82477.0,0.18190969]
[1731335988276,0.075,82496.0,82477.0,0.18190969]
[1731335988277,0.02240501,82494.0,82477.0,0.18190969]
[1731335988488,0.02240501,82493.0,82477.0,0.18190969]
[1731335988686,0.02240501,82493.0,82483.0,0.242471]
[1731335988687,0.02240501,82492.0,82483.0,0.242471]
[1731335988890,0.02240501,82492.0,82483.0,0.121236]
[1731335989226,0.02240501,82492.0,82480.0,0.24248]
[1731335989227,0.02246063,82492.0,82491.0,0.003844]
[1731335989765,0.15340284,82492.0,82491.0,0.003844]
[1731335989944,0.15340284,82492.0,82455.0,0.005]
[1731335989945,0.005,82481.0,82455.0,0.005]
[1731335990163,0.18434262,82492.0,82450.0,0.42447869]
[1731335990164,0.14840284,82480.0,82477.0,0.18190969]
[1731335990380,0.0489,82476.0,82461.0,0.18190969]
[1731335990588,0.0489,82476.0,82450.0,0.18190969]
[1731335990589,0.005,82468.0,82462.0,0.18190969]
[1731335990834,0.25011579,82470.0,82450.0,0.18190969]
[1731335990835,0.005,82464.0,82450.0,0.18190969]
[1731335991047,0.18437739,82463.0,82450.0,0.1539247]
[1731335991261,0.18437739,82463.0,82439.0,0.005]
[1731335991262,0.25011579,82451.0,82431.0,0.18190969]
[1731335991476,0.18683518,82462.0,82441.0,0.18190969]
[1731335991477,0.005,82448.0,82441.0,0.18190969]
[1731335991673,0.005,82448.0,82431.0,0.18190969]
[1731335991926,0.02248803,82447.0,82431.0,0.18190969]
[1731335992132,0.02248803,82447.0,82426.0,0.30322869]
[1731335992133,0.18690969,82445.0,82426.0,0.30322869]
[1731335992317,0.18441482,82444.0,82426.0,0.18190969]
[1731335992570,0.18441482,82444.0,82401.0,0.00602476]
[1731335992571,0.02248803,82443.0,82428.0,0.005]
[1731335992782,0.14843024,82442.0,82429.0,0.005]
[1731335992993,0.02248803,82441.0,82428.0,0.126317]
[1731335993207,0.005,82453.0,82439.0,0.121301]
[1731335993208,0.14843024,82440.0,82439.0,0.121301]
[1731335993437,0.12594221,82440.0,82430.0,0.242629]
[1731335993657,0.03595171,82452.0,82429.0,0.005]
[1731335993658,1.5,82453.0,82439.0,0.121301]
[1731335993867,0.18190969,82444.0,82430.0,0.005]
[1731335994083,1.5,82453.0,82431.0,0.18190969]
[1731335994084,0.12594221,82443.0,82431.0,0.18190969]
[1731335994315,0.12594221,82443.0,82429.0,0.126315]
[1731335994524,0.12594221,82443.0,82430.0,0.005]
[1731335994729,0.02246404,82442.0,82429.0,0.005]
[1731335994936,0.14840625,82441.0,82430.0,0.005]
[1731335995140,0.14840625,82441.0,82420.0,0.242657]
[1731335995141,0.18190969,82435.0,82408.0,0.001372]
[1731335995347,0.25304221,82434.0,82431.0,0.003]
[1731335995546,0.25304221,82434.0,82410.0,0.005]
[1731335995547,0.03595467,82433.0,82410.0,0.005]
[1731335995721,0.14840625,82432.0,82414.0,0.18190969]
[1731335995956,0.02246404,82431.0,82430.0,0.003]
[1731335996167,0.1271,82434.0,82430.0,0.003]
[1731335996384,0.12594221,82434.0,82430.0,0.003]
[1731335996566,0.3078519,82433.0,82430.0,0.003]
[1731335996778,0.12594221,82433.0,82430.0,0.003]
[1731335997111,0.12594221,82433.0,82415.0,0.005]
[1731335997320,0.02241776,82432.0,82431.0,0.001]
[1731335997529,0.38466966,82432.0,82431.0,0.001]
[1731335997728,0.38466966,82432.0,82402.0,0.18690969]
[1731335997729,0.005,82429.0,82404.0,0.005]
[1731335997940,0.14835997,82428.0,82414.0,0.18190969]
[1731335998143,0.02241776,82427.0,82408.0,0.006372]
[1731335998449,0.12594221,82426.0,82412.0,0.242683]
[1731335998649,0.12594221,82426.0,82408.0,0.006372]
[1731335998860,0.12594221,82426.0,82416.0,0.121335]
[1731335998861,0.18190969,82424.0,82416.0,0.121335]
[1731335999069,0.18190969,82423.0,82408.0,0.006372]
[1731335999273,0.12594221,82431.0,82409.0,0.00242666]
[1731335999400,0.18190969,82427.0,82409.0,0.00242666]
[1731335999608,0.18190969,82426.0,82425.0,0.121322]
[1731335999859,0.18190969,82426.0,82410.0,0.16220119]
[1731335999860,0.18190969,82426.0,82422.0,0.005]
[1731336000059,0.18190969,82437.0,82424.0,0.126323]
[1731336000265,0.22156174,82446.0,82424.0,0.126323]
[1731336000266,0.20429667,82436.0,82424.0,0.005]
[1731336000639,0.18190969,82427.0,82414.0,0.003]
[1731336000840,0.0483,82434.0,82408.0,0.006372]
[1731336000841,0.0533,82434.0,82408.0,0.006372]
[1731336001054,0.02238985,82433.0,82408.0,0.006372]
[1731336001259,0.18690969,82427.0,82408.0,0.001372]
[1731336001475,0.14833206,82426.0,82425.0,0.001]
[1731336001681,0.14831874,82426.0,82408.0,0.001372]
[1731336001888,0.0483,82434.0,82412.0,0.18190969]
[1731336002102,0.18190969,82433.0,82425.0,0.242644]
[1731336002289,0.3522,82450.0,82427.0,0.005]
[1731336002493,0.18190969,82432.0,82420.0,0.242657]
[1731336002697,0.12594221,82445.0,82411.0,0.247684]
[1731336002698,0.3078519,82431.0,82411.0,0.247684]
[1731336002902,0.3078519,82431.0,82403.0,0.18190969]
[1731336002903,0.56296769,82431.0,82403.0,0.18190969]
[1731336003109,0.005,82428.0,82403.0,0.18190969]
[1731336003317,0.005,82428.0,82408.0,0.0008155]
[1731336003318,0.005,82425.0,82408.0,0.0008155]
[1731336003525,0.1841179,82424.0,82408.0,0.0008155]
[1731336003745,0.05817569,82423.0,82408.0,0.0038155]
[1731336003950,0.005,82418.0,82408.0,0.0008155]
[1731336004148,0.14830848,82417.0,82408.0,0.0008155]
[1731336004360,0.21910681,82416.0,82408.0,0.0038155]
[1731336004528,0.005,82414.0,82408.0,0.0038155]
[1731336004701,0.0504,82409.0,82408.0,0.0008155]
[1731336004905,0.0504,82409.0,82408.0,0.0038155]
[1731336005109,0.28544455,82409.0,82408.0,0.0038155]
[1731336005324,0.28544455,82409.0,82374.0,0.242794]
[1731336005325,0.005,82395.0,82370.0,0.18190969]
[1731336005528,0.18409072,82394.0,82390.0,0.18190969]
[1731336005734,0.05811454,82393.0,82370.0,0.18190969]
[1731336005931,0.05811454,82393.0,82366.0,0.247816]
[1731336005932,0.14830702,82392.0,82377.0,0.18190969]
[1731336006143,1.52236481,82391.0,82369.0,0.121404]
[1731336006342,0.14830702,82390.0,82372.0,0.18190969]
[1731336006620,0.12594221,82390.0,82382.0,0.18190969]
[1731336006819,0.18190969,82389.0,82379.0,0.121389]
[1731336007026,0.02232454,82401.0,82378.0,0.04320564]
[1731336007242,0.18190969,82393.0,82377.0,0.242784]
[1731336007487,0.18190969,82393.0,82367.0,0.00242764]
[1731336007488,0.18190969,82393.0,82386.0,0.121378]
[1731336007694,0.18190969,82393.0,82383.0,0.121383]